[Event "29th Bosnjaci Open 2025"]
[Site "Bosnjaci"]
[Date "2025.01.04"]
[Round "2.20"]
[White "Kukic, Lora"]
[Black "Starcevic, Ante Leon"]
[Result "1-0"]
[ECO "A48"]
[WhiteElo "1961"]
[BlackElo "2200"]
[Annotator "TA"]
[PlyCount "47"]
[EventDate "2025.01.04"]
[EventType "swiss"]
[EventCountry "CRO"]
[SourceTitle "playchess.com"]
[Source "ChessBase"]
[SourceQuality "1"]
[TimeControl "5400+30"]

{[%evp 10,47,8,14,25,10,6,-19,-16,-21,-7,-25,-2,-31,-25,-29,-30,-41,-11,-6,29,10,200,154,392,401,545,309,449,304,287,264,623,460,2063,2058,2023,2002,1910,1494]} 1. d4 {[%emt 0:44:25]} Nf6 {[%emt 0:00:23]} 2. Nf3 {[%emt 0:00:08]} g6 {[%emt 0:00:15]} 3. Bg5 {[%emt 0:00:16]} Bg7 {[%emt 0:00:15]} 4. Nbd2 {[%emt 0:00:05]} d6 {[%emt 0:00:46]} 5. c3 {[%emt 0:00:27]} h6 {[%emt 0:00:14]} 6. Bh4 {[%emt 0:00:36]} c5 {[%emt 0:02:05]} 7. dxc5 {[%emt 0:01:33]} dxc5 {[%emt 0:00:14]} 8. e4 {[%emt 0:00:20]} Nc6 {[%emt 0:01:43] The position is equal.} 9. Bc4 {[%emt 0:05:35]} Nh5 {[%emt 0:05:50]} 10. O-O {[%emt 0:01:36]} g5 {[%emt 0:05:25]} 11. Bg3 {[%emt 0:02:07][%cal Of3e5]} Nxg3 {[%emt 0:01:36]} 12. fxg3 {[%emt 0:01:08]} O-O {[%emt 0:03:47][%cal Bh8f8,Bf8d8,Bd8d3][%mdl 32]} 13. Qe2 {[%emt 0:02:28]} Qc7 {[%emt 0:03:33]} 14. Rae1 {[%emt 0:03:33]} b6 {[%emt 0:10:46]} 15. e5 {[%emt 0:01:44]} e6 $2 {[%emt 0:11:03]} (15... g4 $11 {and Black has nothing to worry.} 16. Nh4 Nxe5 (16... Qxe5 $2 {is the wrong capture.} 17. Ng6 $16)) 16. Bd3 {[%emt 0:06:24] Hoping for Qe4.} Bb7 $2 {[%emt 0:04:50] [#] Black cannot hold the game after this.} (16... Rd8 $16 {was called for.}) 17. Qe4 $1 $18 {[%emt 0:05:33][%csl Gd3][%cal Re4h7]} Rfd8 {[%emt 0:01:38][%cal Od8d3]} 18. Qh7+ {[%emt 0:01:09]} Kf8 {[%emt 0:00:06] [#]} 19. Ne4 $1 {[%emt 0:02:54]} Rxd3 {[%emt 0:07:44]} 20. Nfxg5 {[%emt 0:02:44][%cal Bf3g5,Bg5e6,Be6c7,Bc7a8][%mdl 32]} Nd8 {[%emt 0:06:36]} (20... hxg5 21. Nxg5 Nd8 22. Rxf7+ (22. Qxd3 Qe7 $18) 22... Qxf7 23. Nxf7 Nxf7 24. Qxd3 Rd8) 21. Rxf7+ {[%emt 0:09:03] White is clearly winning.} Nxf7 {[%emt 0:01:38]} (21... Qxf7 $142 22. Nxf7 Nxf7) 22. Nxe6+ {[%emt 0:00:13]} Ke7 {[%emt 0:00:04]} 23. Nxc7 {[%emt 0:00:15] A dynamic duo of knights.} Bxe5 {[%emt 0:01:08]} 24. Nxa8 {[%emt 0:00:49] Weighted Error Value: White=0.45/Black=0.95.  Loses game:     	---       	Black=2      Mistake:       	---       	Black=2      Inaccurate:     	White=2     	Black=4      OK:         	White=3     	Black=3      Strong:       	White=1     	---} 1-0

[Event "29th Bosnjaci Open 2025"]
[Site "Bosnjaci"]
[Date "2025.01.04"]
[Round "3.1"]
[White "Glavas, Dragan"]
[Black "Saric, Ante"]
[Result "0-1"]
[ECO "E49"]
[WhiteElo "2251"]
[BlackElo "2483"]
[Annotator "TA"]
[PlyCount "76"]
[EventDate "2025.01.04"]
[EventType "swiss"]
[EventCountry "CRO"]
[SourceTitle "playchess.com"]
[Source "ChessBase"]
[SourceQuality "1"]
[TimeControl "5400+30"]

{[%evp 24,76,0,-7,-17,-18,-9,-35,-18,-41,-29,-82,-73,-77,-62,-73,-72,-66,-38,-39,-38,-51,-41,-48,-42,-103,-116,-128,-114,-109,-107,-157,-149,-156,-154,-152,-144,-199,-196,-191,-201,-249,-220,-212,-269,-350,-344,-342,-328,-349,-309,-464,-460,-458,-502]} 1. d4 {[%emt 0:00:04]} Nf6 {[%emt 0:00:06]} 2. c4 {[%emt 0:00:07]} e6 {[%emt 0:00:04]} 3. Nc3 {[%emt 0:00:06]} Bb4 {[%emt 0:00:05]} 4. e3 {[%emt 0:01:24]} O-O {[%emt 0:00:05]} 5. Bd3 {[%emt 0:01:04]} c5 {[%emt 0:02:35]} 6. Nge2 {[%emt 0:00:50]} d5 {[%emt 0:02:46]} 7. a3 {[%emt 0:01:54]} Bxc3+ {[%emt 0:01:10]} 8. bxc3 {[%emt 0:00:26]} dxc4 {[%emt 0:00:07]} 9. Bxc4 {[%emt 0:00:18]} Qc7 {[%emt 0:01:09]} 10. Ba2 {[%emt 0:04:12]} b6 {[%emt 0:00:29]} 11. O-O {[%emt 0:01:42]} Ba6 {[%emt 0:00:33]} 12. Re1 {[%emt 0:04:41]} Nc6 {[%emt 0:00:13][%cal Bb8c6,Bc6a5,Ba5c4][%mdl 32]} 13. Ng3 {[%emt 0:06:50]} Rfd8 {[%emt 0:06:18]} 14. Bb2 {[%emt 0:01:59]} Na5 {[%emt 0:01:49]} 15. Rc1 {[%emt 0:02:58]} Bc4 {[%emt 0:06:21] Black is slightly better.} 16. Bxc4 {[%emt 0:18:11]} Nxc4 {[%emt 0:00:51]} 17. Rc2 {[%emt 0:00:22]} (17. Qa4 $11 {keeps the balance.} Nxb2 18. Qb5) 17... Qc6 {[%emt 0:08:21] Black is much more active.} 18. Bc1 {[%emt 0:09:00]} Qa4 {[%emt 0:07:13]} 19. Ra2 {[%emt 0:07:37]} Qxd1 {[%emt 0:00:49]} 20. Rxd1 {[%emt 0:00:14]} Rac8 {[%emt 0:02:15]} 21. e4 {[%emt 0:03:03]} h6 {[%emt 0:00:11]} 22. f3 {[%emt 0:02:27]} Nd7 {[%emt 0:07:01] Excellent horsemanship.} 23. Nf1 {[%emt 0:00:36]} Nde5 {[%emt 0:03:55]} 24. Ra1 {[%emt 0:01:48] Black continues to play with concentration.} (24. Ne3 $15 Nxe3 (24... cxd4 25. cxd4 Nxe3 26. Bxe3 $15) 25. Bxe3) 24... cxd4 $17 {[%emt 0:01:45]} 25. Rxd4 {[%emt 0:05:23]} Rxd4 {[%emt 0:00:46]} 26. cxd4 {[%emt 0:00:08]} Nc6 {[%emt 0:00:02]} 27. Be3 {[%emt 0:01:34]} (27. d5 $142 exd5 28. exd5) 27... Nxe3 {[%emt 0:00:15]} 28. Nxe3 {[%emt 0:00:07]} Nxd4 {[%emt 0:00:02][%mdl 4096] Endgame. KRN-KRN} 29. Rd1 {[%emt 0:00:28]} e5 {[%emt 0:03:44]} 30. Kf2 {[%emt 0:03:37]} (30. Nf5 $17 {was called for.} Rc4 31. Kf2) 30... Rc3 $19 {[%emt 0:02:13]} 31. a4 {[%emt 0:03:29]} f6 {[%emt 0:05:00]} 32. h4 {[%emt 0:05:27]} h5 {[%emt 0:02:21]} 33. Nf5 {[%emt 0:02:36]} Rc2+ {[%emt 0:06:00]} 34. Kf1 {[%emt 0:01:27]} Nxf5 {[%emt 0:00:35]} 35. exf5 {[%emt 0:00:11]} Ra2 {[%emt 0:00:06]} 36. Rd8+ {[%emt 0:06:52]} Kh7 {[%emt 0:00:06]} 37. g3 {[%emt 0:00:11]} (37. f4 $142) 37... Rxa4 {[%emt 0:00:19]} 38. Kg2 {[%emt 0:00:29]} e4 {[%emt 0:00:50] Weighted Error Value: White=0.28 (precise) /Black=0.07 (flawless) .  Mistake:       	White=5     	---        Inaccurate:     	White=2     	Black=1      OK:         	White=6     	Black=9      Best:        	---       	Black=3} 0-1

[Event "29th Bosnjaci Open 2025"]
[Site "Bosnjaci"]
[Date "2025.01.04"]
[Round "3.2"]
[White "Culum, Sanjin"]
[Black "Gal, Andrej"]
[Result "1-0"]
[ECO "B12"]
[WhiteElo "2446"]
[BlackElo "2256"]
[Annotator "TA"]
[PlyCount "91"]
[EventDate "2025.01.04"]
[EventType "swiss"]
[EventCountry "CRO"]
[SourceTitle "playchess.com"]
[Source "ChessBase"]
[SourceQuality "1"]
[TimeControl "5400+30"]

{[%evp 9,91,0,3,0,6,0,0,-6,12,0,0,-7,46,25,47,23,43,30,47,31,37,39,46,0,39,47,35,35,45,62,55,54,224,122,120,125,133,132,98,83,84,81,75,47,140,134,179,179,335,173,189,180,185,174,172,0,125,71,315,298,374,317,426,442,446,393,439,448,572,432,426,353,690,641,718,683,29984,29985,29985,29986,29986,29987,29987,29988]} 1. e4 {[%emt 0:00:03]} c6 {[%emt 0:00:06]} 2. d4 {[%emt 0:00:50]} d5 {[%emt 0:00:05]} 3. e5 {[%emt 0:00:08]} c5 {[%emt 0:00:17]} 4. Nf3 {[%emt 0:00:06]} cxd4 {[%emt 0:00:05]} 5. Qxd4 {[%emt 0:00:04]} Nc6 {[%emt 0:00:27][%cal Bb8c6,Bc6b4,Bb4d3][%mdl 32]} 6. Qf4 {[%emt 0:00:05]} e6 {[%emt 0:00:29]} 7. Bd3 {[%emt 0:01:22]} Nb4 {[%emt 0:01:28]} 8. Nc3 {[%emt 0:00:12]} Bd7 {[%emt 0:02:05]} 9. O-O {[%emt 0:09:55][%cal Od3h7]} Nxd3 {[%emt 0:02:20]} 10. cxd3 {[%emt 0:00:05]} Nh6 {[%emt 0:06:27]} (10... Ne7 $11) 11. Nd4 {[%emt 0:08:16]} a6 {[%emt 0:15:21]} 12. Re1 {[%emt 0:05:58]} Ng8 {[%emt 0:10:25][%cal Bh6g8,Bg8e7,Be7c6][%mdl 32]} 13. h4 {[%emt 0:06:34][%cal Oc3d5]} Ne7 {[%emt 0:05:13]} 14. h5 {[%emt 0:00:57] Inhibits Ng6.} Nc6 {[%emt 0:03:43]} 15. Be3 {[%emt 0:04:40]} h6 {[%emt 0:04:08][%cal Od8g5]} 16. Rac1 {[%emt 0:09:42]} (16. Nxc6 $14 {deserves consideration.} Bxc6 17. Ne2) 16... Rc8 {[%emt 0:11:20][%cal Od8g5]} 17. Nxc6 {[%emt 0:02:04]} Bxc6 {[%emt 0:00:19]} 18. Ne2 {[%emt 0:00:44][%cal Bc3e2,Be2d4,Bd4b3,Bb3a5][%mdl 32]} Be7 {[%emt 0:07:28]} 19. Qg4 {[%emt 0:01:41]} Kf8 $1 {[%emt 0:00:19]} 20. Nd4 {[%emt 0:00:48]} Qa5 $2 {[%emt 0:02:25]} (20... Bd7 $14) 21. a3 {[%emt 0:02:50]} (21. f4 $1 $18 {[%cal Rf4f5]} Bd7 22. f5 Rxc1 23. Rxc1 exf5 24. Nxf5) 21... Bd7 {[%emt 0:02:34]} 22. Rxc8+ {[%emt 0:01:42]} Bxc8 {[%emt 0:00:01]} 23. Rc1 {[%emt 0:00:10]} Bd7 {[%emt 0:01:03]} 24. b4 {[%emt 0:08:42]} Qd8 {[%emt 0:01:58] Black is weak on the dark squares} 25. Nb3 {[%emt 0:00:46]} Kg8 {[%emt 0:01:25]} 26. Na5 {[%emt 0:02:03]} (26. Qd4 {simplifies} Qb8 27. Qa7 Qxa7 28. Bxa7 Bd8 29. Nc5) 26... Kh7 {[%emt 0:04:46]} ({Better is} 26... Qb8 $14) 27. Qf4 $16 {[%emt 0:04:02]} f6 {[%emt 0:03:08]} 28. Qg4 {[%emt 0:05:32]} Qb8 $2 {[%emt 0:05:57]} (28... Rg8 {is a better defense.} 29. exf6 (29. Nxb7 Qe8 $18) 29... Bxf6 (29... gxf6 30. Qf4 $18) 30. Qg6+ (30. Nxb7 Qe8 $18) 30... Kh8 31. Nxb7 Qf8) 29. exf6 {[%emt 0:10:49]} (29. Ba7 $142 Qa8 (29... Qxa7 $2 30. Qg6+ Kg8 31. Rc7 $18) 30. Qg6+ (30. Rc7 Qe8 $18) 30... Kg8 31. Rc7) 29... Bxf6 $18 {[%emt 0:00:17]} 30. Bf4 {[%emt 0:01:10]} Qe8 {[%emt 0:01:30] [#]} 31. Rc7 $1 $36 {[%emt 0:00:38][%mdl 2048] White is on the roll.} (31. Nxb7 e5 32. Qg6+ Qxg6 33. hxg6+ Kxg6 $11) 31... Bc8 {[%emt 0:02:56] [#]} 32. Qe2 $2 {[%emt 0:09:53]} (32. Nxb7 $6 e5 33. Qg6+ Qxg6 34. hxg6+ Kxg6 $14) (32. Bxh6 $1 $18 e5 (32... Kxh6 $2 33. Rxc8 g5 34. Rxe8 $18) 33. Rxg7+ Kxh6 34. Qg6+ Qxg6 35. Rxg6+ Kxh5 36. Rxf6) 32... Rf8 {[%emt 0:02:40]} (32... e5 $11 33. Bg3 Qe6) 33. d4 {[%emt 0:01:19] White has more active pieces.} ({White should play} 33. Nxb7 {Black must now prevent Nd6.} Bxb7 34. Rxb7) 33... Bd7 $2 {[%emt 0:01:04]} (33... Kh8 $16) 34. Nxb7 {[%emt 0:01:33]} Bb5 {[%emt 0:00:38][%cal Bd7b5,Bb5d3,Bd3b1][%mdl 32]} 35. Qg4 {[%emt 0:00:58]} Bd3 {[%emt 0:01:52]} 36. Be5 {[%emt 0:00:29]} Bxe5 {[%emt 0:01:37]} 37. dxe5 {[%emt 0:00:05][%csl Gc7][%cal Rg4g7]} Rg8 {[%emt 0:00:08]} 38. Nd6 {[%emt 0:00:51] Wards off Bf5} Qa4 {[%emt 0:00:36]} 39. Rc3 {[%emt 0:00:48]} (39. Qxe6 Qd1+ 40. Kh2 Qxh5+ 41. Kg3 Qg5+ 42. Kh3 (42. Kh2 Rf8 $11) 42... Qh5+ 43. Kg3 Qg5+ 44. Kh2 Rf8 $11) 39... Bb1 {[%emt 0:00:43]} 40. Rg3 {[%emt 0:01:18]} (40. Qxe6 Qd1+ 41. Kh2 Qxh5+ 42. Rh3 Qg5 $18) 40... Qc2 $2 {[%emt 0:00:23] Prevents Qg6+} (40... Qd7 41. Rf3 (41. Qd1 Bf5 $18) 41... Kh8) 41. Kh2 {[%emt 0:00:20]} (41. Qxe6 Qd1+ 42. Kh2 Qxh5+ 43. Rh3 Qg5 $18) 41... Qxf2 {[%emt 0:00:38]} 42. Qxe6 {[%emt 0:00:21][%cal Oe6g6] Qg6+! would kill now.} Qf4 {[%emt 0:00:29] [#]} 43. Qg6+ $3 {[%emt 0:00:29][%mdl 512]} Bxg6 {[%emt 0:00:08]} 44. hxg6+ {[%emt 0:00:03][%cal Bh5g6,Bg6f7][%mdl 32]} Kh8 {[%emt 0:00:02]} 45. Nf7+ {[%emt 0:00:04]} Qxf7 {[%emt 0:00:10]} 46. gxf7 {[%emt 0:00:05]} 1-0

[Event "29th Bosnjaci Open 2025"]
[Site "Bosnjaci"]
[Date "2025.01.04"]
[Round "3.3"]
[White "Zaja, Ivan"]
[Black "Djuric, Leon"]
[Result "1-0"]
[ECO "A80"]
[WhiteElo "2418"]
[BlackElo "2145"]
[Annotator "TA"]
[PlyCount "71"]
[EventDate "2025.01.04"]
[EventType "swiss"]
[EventCountry "CRO"]
[SourceTitle "playchess.com"]
[Source "ChessBase"]
[SourceQuality "1"]
[TimeControl "5400+30"]

{[%evp 10,71,22,22,11,9,30,22,20,10,22,-17,37,27,53,29,43,10,17,14,8,0,0,-19,1,0,32,34,42,40,72,75,92,87,96,93,101,101,107,66,69,54,75,60,81,72,122,133,358,371,382,389,372,385,381,372,1247,691,2209,2211,2211,2211,2211,2211]} 1. d4 {[%emt 0:00:02]} f5 {[%emt 0:00:07]} 2. Nc3 {[%emt 0:05:53]} Nf6 {[%emt 0:00:12]} 3. Bg5 {[%emt 0:00:22]} d5 {[%emt 0:00:08]} 4. e3 {[%emt 0:02:53]} e6 {[%emt 0:07:34]} 5. Nf3 {[%emt 0:02:33]} Be7 {[%emt 0:03:54]} 6. Bd3 {[%emt 0:03:59]} O-O {[%emt 0:07:42]} 7. Ne2 {[%emt 0:02:35]} Ne4 {[%emt 0:02:38]} 8. Bxe7 {[%emt 0:00:48]} Qxe7 {[%emt 0:00:07]} 9. c3 {[%emt 0:06:41]} Nd7 {[%emt 0:13:21]} 10. Qb3 {[%emt 0:01:43]} Nb6 {[%emt 0:03:05]} (10... c5 $11 11. Qa3 Re8) 11. Ne5 {[%emt 0:03:15]} Bd7 {[%emt 0:08:58]} 12. a4 {[%emt 0:07:46]} a5 {[%emt 0:01:20]} 13. f3 {[%emt 0:10:15]} Nd6 {[%emt 0:00:56]} 14. O-O {[%emt 0:05:13]} Qe8 {[%emt 0:01:29]} 15. Nxd7 {[%emt 0:01:41]} Qxd7 {[%emt 0:00:11]} 16. Nf4 {[%emt 0:03:53]} Ndc4 {[%emt 0:06:05]} 17. Bxc4 {[%emt 0:02:29]} Nxc4 {[%emt 0:00:05]} 18. Rfe1 {[%emt 0:00:38]} Qd6 {[%emt 0:00:51]} 19. Nd3 {[%emt 0:01:19]} b6 {[%emt 0:14:47]} 20. Qc2 {[%emt 0:00:34]} Qd8 {[%emt 0:06:14]} 21. b3 {[%emt 0:00:51]} Nd6 {[%emt 0:00:05]} 22. c4 {[%emt 0:00:12]} dxc4 {[%emt 0:09:25]} 23. bxc4 {[%emt 0:00:09]} c5 {[%emt 0:01:02]} 24. dxc5 {[%emt 0:03:53]} bxc5 {[%emt 0:00:07]} 25. Qc3 {[%emt 0:00:44]} Qc8 {[%emt 0:04:37]} 26. Red1 {[%emt 0:01:21]} Rd8 {[%emt 0:01:08]} 27. Nf4 {[%emt 0:01:23]} Kf7 {[%emt 0:02:22]} ({Black should try} 27... Qd7) 28. Rab1 $16 {[%emt 0:07:18] Hoping for Nh5. White has more active pieces.} Ra7 $2 {[%emt 0:00:01]} (28... Qc6 $16 {was called for.} 29. h4 Re8) 29. Qe5 $18 {[%emt 0:01:41]} Ra6 {[%emt 0:01:10]} 30. Nh5 {[%emt 0:02:30]} Ne8 {[%emt 0:00:47][%cal Oa6b6]} 31. Rxd8 {[%emt 0:01:18]} Qxd8 {[%emt 0:00:01]} 32. Rb7+ {[%emt 0:00:32]} (32. Qxc5 Qd7 33. Nf4 Rc6 34. Qxa5 Rxc4 $11) 32... Kg6 $2 {[%emt 0:02:09]} (32... Kf8 33. Nxg7 (33. Qxc5+ Qd6 $16) 33... Qd1+ 34. Kf2 Qd2+ 35. Kg3 Qd6 36. Qxd6+ Rxd6) 33. Rxg7+ {[%emt 0:07:31]} (33. Nxg7 Qd1+ 34. Kf2 Qd2+ 35. Kg3 Qd6 36. Qxd6 Nxd6 $11) (33. Nf4+ Kh6 34. Qxc5 (34. Nxe6 Qd6 $16) 34... Qd1+ 35. Kf2 Rd6 $16) 33... Nxg7 {[%emt 0:00:07]} 34. Qxg7+ {[%emt 0:00:05]} Kxh5 {[%emt 0:00:04]} 35. Qxh7+ {[%emt 0:00:07]} Kg5 {[%emt 0:00:10]} 36. f4+ {[%emt 0:00:04]} 1-0

[Event "29th Bosnjaci Open 2025"]
[Site "Bosnjaci"]
[Date "2025.01.04"]
[Round "3.4"]
[White "Kovacevic, Blazimir"]
[Black "Berke, Ana"]
[Result "1-0"]
[ECO "A36"]
[WhiteElo "2379"]
[BlackElo "2133"]
[Annotator "TA"]
[PlyCount "73"]
[EventDate "2025.01.04"]
[EventType "swiss"]
[EventCountry "CRO"]
[SourceTitle "playchess.com"]
[Source "ChessBase"]
[SourceQuality "1"]
[TimeControl "5400+30"]

{[%evp 14,73,0,0,0,0,0,-19,-8,-3,0,0,0,0,18,18,27,6,8,9,7,14,15,0,24,34,33,26,30,0,17,11,20,22,7,0,100,70,82,87,87,89,329,27,91,40,28,25,21,-401,127,76,62,56,527,517,524,459,5543,727,795,454]} 1. Nf3 {[%emt 0:00:04]} c5 {[%emt 0:02:15]} 2. b3 {[%emt 0:00:52]} Nc6 {[%emt 0:00:37]} 3. Bb2 {[%emt 0:00:05]} d6 {[%emt 0:00:22]} 4. c4 {[%emt 0:01:13]} e5 {[%emt 0:00:48]} 5. d3 {[%emt 0:01:24]} g6 {[%emt 0:00:20]} 6. g3 {[%emt 0:00:09]} Bg7 {[%emt 0:00:13]} 7. Bg2 {[%emt 0:00:07]} Nge7 {[%emt 0:00:34]} 8. Nc3 {[%emt 0:00:36]} O-O {[%emt 0:00:51]} 9. O-O {[%emt 0:00:06]} Rb8 {[%emt 0:00:58]} 10. a3 {[%emt 0:01:53]} a6 {[%emt 0:01:31] The position is equal.} 11. e3 {[%emt 0:00:53]} h6 {[%emt 0:02:18]} 12. Nd2 {[%emt 0:00:23]} b5 {[%emt 0:05:17]} 13. Qc2 {[%emt 0:01:30]} Kh7 {[%emt 0:04:18]} 14. Nd5 {[%emt 0:10:56]} Be6 {[%emt 0:03:43]} 15. Bc3 {[%emt 0:07:09]} Qd7 {[%emt 0:04:03]} 16. f4 {[%emt 0:02:28]} f5 {[%emt 0:01:24]} 17. Rae1 {[%emt 0:08:09]} Rbe8 {[%emt 0:02:27]} 18. Kh1 {[%emt 0:06:41]} Ng8 {[%emt 0:02:48]} 19. e4 {[%emt 0:06:26]} Nd4 {[%emt 0:08:21]} 20. Bxd4 {[%emt 0:00:22]} exd4 {[%emt 0:00:50]} 21. Nf3 {[%emt 0:12:52]} fxe4 {[%emt 0:05:05]} 22. dxe4 {[%emt 0:00:21] next Nh4 is good for White.} Nf6 {[%emt 0:03:58]} 23. Nh4 {[%emt 0:10:04]} Bf7 $1 {[%emt 0:11:26]} 24. Qd3 {[%emt 0:05:00]} Ng4 {[%emt 0:06:04] [#]} (24... bxc4 $11 {remains equal.} 25. bxc4 Nxd5 26. cxd5 Qb5) 25. e5 $1 {[%emt 0:03:47]} bxc4 {[%emt 0:04:04]} (25... dxe5 26. Be4) 26. bxc4 {[%emt 0:00:08] Strongly threatening Be4.} dxe5 {[%emt 0:07:08]} 27. Be4 $1 {[%emt 0:00:46]} (27. f5 gxf5 28. Nxf5 Kh8 $11) 27... Qd6 {[%emt 0:02:12]} (27... Kh8 $16 {is a better defense.}) 28. f5 $2 {[%emt 0:07:35]} (28. h3 $1 $18 {[%cal Rh3g4]}) 28... Kh8 {[%emt 0:02:24] [#]} (28... Bxd5 $11 29. Bxd5 (29. cxd5 Kg8 $11) (29. fxg6+ $2 Kh8 $17) 29... Nf6 (29... gxf5 $2 30. Rxf5 Kh8 31. Ng6+ Qxg6 32. Rxf8+ Rxf8 33. Qxg6 $18) 30. Nxg6 (30. fxg6+ Kh8 $17) 30... Rg8) 29. Qe2 {[%emt 0:04:45]} (29. fxg6 Bxd5 30. cxd5 Nf2+ 31. Rxf2 Rxf2 $17) (29. h3 $1 $16 {[%cal Rh3g4]} Nf6 (29... gxf5 $2 30. Nxf5 Qg6 31. Nh4 $18) 30. Nxf6 (30. fxg6 Bxd5 31. cxd5 c4 $17) (30. Nxg6+ Bxg6 31. Nxf6 Bxf5 $11) 30... Bxf6 31. fxg6 (31. Nxg6+ Bxg6 32. fxg6 Kg7 $16)) 29... gxf5 $14 {[%emt 0:03:31]} 30. Nxf5 {[%emt 0:00:33]} Qg6 {[%emt 0:02:01] [#]} 31. Nxd4 $2 {[%emt 0:04:26][%mdl 8192]} Qh5 $2 {[%emt 0:02:33]} (31... exd4 $19 32. Nf4 Qxe4+ 33. Qxe4 Rxe4 34. Rxe4 Kg8 (34... Bxc4 $2 35. Ng6+ Kh7 36. Nxf8+ $19)) 32. Nf5 {[%emt 0:01:31] White has more active pieces.} (32. Nc6 $142) 32... Bg6 $16 {[%emt 0:03:35]} 33. Nd6 $36 {[%emt 0:01:11][%mdl 2048] Bxg6 is the strong threat. White has some pressure. Excellent horsemanship.} Qh3 $2 {[%emt 0:03:52][%mdl 8192] Black is weak on the light squares} 34. Bxg6 $18 {[%emt 0:01:27] White is clearly winning.} Rxf1+ {[%emt 0:00:50]} 35. Rxf1 {[%emt 0:00:06]} Rf8 {[%emt 0:04:44]} (35... Nxh2 $142 36. Qg2 (36. Qxh2 Qxf1+ 37. Qg1 Qh3+ 38. Qh2 Qf1+ 39. Qg1 Qh3+ 40. Qh2 Qf1+ $11) 36... Qxg2+ 37. Kxg2 Nxf1 38. Bxe8 (38. Nxe8 Nd2 $18) 38... Nd2) 36. Rxf8+ {[%emt 0:00:46]} Bxf8 {[%emt 0:00:04]} 37. Bf5 {[%emt 0:00:25] Weighted Error Value: White=0.46/Black=0.61.  Loses game:     	White=1     	Black=2      Missed win:     	White=1     	Black=1      Mistake:       	White=2     	Black=3      Inaccurate:     	White=2     	---        OK:         	White=8     	Black=5      Best:        	White=1     	Black=2      Strong:       	White=1     	Black=1} 1-0

[Event "29th Bosnjaci Open 2025"]
[Site "Bosnjaci"]
[Date "2025.01.04"]
[Round "3.5"]
[White "Simunic, Krunoslav"]
[Black "Muratovic, Efim"]
[Result "0-1"]
[ECO "E04"]
[WhiteElo "2122"]
[BlackElo "2322"]
[Annotator "TA"]
[PlyCount "64"]
[EventDate "2025.01.04"]
[EventType "swiss"]
[EventCountry "CRO"]
[SourceTitle "playchess.com"]
[Source "ChessBase"]
[SourceQuality "1"]
[TimeControl "5400+30"]

{[%evp 12,64,16,17,15,8,20,0,0,1,2,9,28,0,-12,-52,-46,-44,-37,-28,-57,-44,-52,-59,0,-57,-69,-86,-62,-89,-95,-114,-120,-113,-112,-122,-100,-165,-170,-253,-253,-252,-259,-245,-248,-874,-877,-875,-851,-933,-925,-29982,-29983,-29992,-1808]} 1. d4 {[%emt 0:00:18]} Nf6 {[%emt 0:02:47]} 2. c4 {[%emt 0:00:47]} e6 {[%emt 0:01:16]} 3. Nf3 {[%emt 0:01:00]} d5 {[%emt 0:00:33]} 4. g3 {[%emt 0:00:37]} dxc4 {[%emt 0:04:54]} 5. Bg2 {[%emt 0:04:21]} Bb4+ {[%emt 0:07:56]} 6. Bd2 {[%emt 0:08:24]} a5 {[%emt 0:04:20]} 7. O-O {[%emt 0:03:58][%mdl 1024] White has compensation.} O-O {[%emt 0:02:10]} 8. Bg5 {[%emt 0:01:41]} b5 {[%emt 0:08:33]} 9. Ne5 {[%emt 0:02:55]} Ra6 {[%emt 0:02:48]} 10. a4 {[%emt 0:06:29]} c6 {[%emt 0:01:27]} 11. Nc3 {[%emt 0:07:32]} Rb6 {[%emt 0:01:43]} 12. Ne4 {[%emt 0:06:34]} Be7 {[%emt 0:12:26]} 13. axb5 {[%emt 0:02:41]} (13. Qc2 {is more complex.} Nd5 14. Bxe7 Qxe7 15. Nf3) 13... cxb5 {[%emt 0:00:09]} 14. Rxa5 {[%emt 0:01:09]} Nxe4 {[%emt 0:05:17]} 15. Bxe7 {[%emt 0:03:20]} Qxe7 {[%emt 0:00:07]} 16. Bxe4 {[%emt 0:00:15]} f6 {[%emt 0:00:24]} 17. Nf3 {[%emt 0:02:46]} f5 {[%emt 0:03:30]} (17... Bb7 $15 18. Qc2 Bxe4 19. Qxe4 Qb7 20. Qxb7 Rxb7) 18. Bb1 {[%emt 0:01:58]} ({Better is} 18. Ba8 $11) 18... Bb7 $15 {[%emt 0:00:33]} 19. Ne5 {[%emt 0:07:02]} Rd8 {[%emt 0:03:05]} 20. e3 {[%emt 0:03:30]} Nd7 {[%emt 0:01:52]} 21. f4 {[%emt 0:04:52]} Nxe5 {[%emt 0:01:21]} 22. fxe5 {[%emt 0:00:02]} Qd7 {[%emt 0:02:09] Black is more active.} 23. Kf2 {[%emt 0:11:24]} Qc6 {[%emt 0:09:47] White is weak on the light squares} 24. Qd2 {[%emt 0:01:43] [#]} (24. Qe2 $17) 24... b4 $1 $19 {[%emt 0:00:42] Hoping for ...c3.} 25. d5 {[%emt 0:03:54]} (25. Qe2 $142) 25... c3 {[%emt 0:07:46][%cal Rd8d5]} (25... Rxd5 26. Rxd5 Qxd5 27. Qxd5 Bxd5 28. e4 $15) (25... exd5 26. Qd4 $15) 26. Qd4 {[%emt 0:00:43]} Rxd5 {[%emt 0:00:22]} 27. Rxd5 {[%emt 0:00:38]} Qxd5 $40 {[%emt 0:00:20][%mdl 128] Black attacks with force.} 28. bxc3 $2 {[%emt 0:00:39] [#]} (28. Qxd5 Bxd5 29. g4) 28... bxc3 $1 {[%emt 0:02:59]} 29. Qxd5 {[%emt 0:00:01]} Rb2+ {[%emt 0:03:06]} ({Less strong is} 29... exd5 30. Bxf5 Rb2+ 31. Kg1 $17) 30. Kf3 {[%emt 0:02:42]} Bxd5+ {[%emt 0:00:08]} 31. e4 {[%emt 0:00:44] [#]} Rxb1 $1 {[%emt 0:00:02][%mdl 512]} 32. Ke2 {[%emt 0:01:03]} (32. Rf2 Bxe4+) 32... Rb2+ {[%emt 0:00:30]} (32... Bc4+ $142 33. Ke3 Bxf1 (33... Rxf1 {gets mated.} 34. exf5 c2 35. Kd4 c1=Q 36. Kc5 Ba2+ 37. Kb6 Qc3 38. h3 Rb1+ 39. Ka7 Qa5#) 34. exf5 c2 35. fxe6 c1=Q+ (35... c1=R $2 36. g4 $19) 36. Ke4 Qc2+ 37. Kf3 Rb3+ (37... Qxh2 38. Ke4 Qc2+ 39. Kf3 Qe2+ 40. Kf4 Rb4+ 41. Kg5 Qxe5#) 38. Kf4 Rb4+ 39. Kg5 Qg6#) 0-1